Cogmind - Beta 16 @@@ ROGUE MODE // 2025.11.30 @ 01:49:05 Player: Azktor Result: Self-destructed Performance ------------- Evolutions (1) 500 Regions Visited (5) 1000 Robots Destroyed (12) 60 Value Destroyed (210) 210 Prototype IDs (2) 40 Alien Tech Used (0) 0 Bonus (637) 637 TOTAL SCORE: 2447 Bonus ------- Follower Combat Kills 37 Met Imprinter 300 Was Imprinted 300 Cogmind --------- Core Integrity 136/400 Matter 280/300 Energy 170/170 System Corruption 0% Temperature Cool (0) Movement Flying (129) Ox1 Location -6/Proximity Caves Parts ------- > --- POWER (1) -------- Makeshift Power Source > --- PROPULSION (3) --- Flight Unit Makeshift Flight Unit > --- UTILITY (3) ------ Heat Sink Improved Heat Sink Small Storage Unit > --- WEAPON (2) ------- Ripper > --- INVENTORY (8) ---- Flight Unit Hacking Drone Bay (1/1) Makeshift Sword Peak State ------------ > --- POWER ------------ Improved Deuterium Engine > --- PROPULSION ------- Flight Unit Makeshift Flight Unit Makeshift Flight Unit > --- UTILITY ---------- Improved Heat Sink Small Storage Unit Seismic Detector > --- WEAPON ----------- Ripper > --- INVENTORY -------- Makeshift Power Source Flight Unit Flight Unit Flight Unit Flight Unit Heat Sink Hacking Drone Bay Makeshift Sword [Rating: 24] Favorites ----------- Power Light Ion Engine Engine Light Ion Engine Propulsion Flight Unit Wheel Wheel Flight Unit Flight Unit Utility Small Storage Unit Device Seismic Detector Storage Small Storage Unit Weapon Light Assault Rifle Ballistic Gun Light Assault Rifle Ballistic Cannon Bore Cannon Impact Weapon Hammer Slashing Weapon Ripper Build | -11 -10 -9 -9 -7 -6 ------- Run | Yrd Mat Mat Min Zio Pro Slots Evolved 2 | . . 2 . . . Power . | . . . . . . Propulsion 1 | . . 1 . . . Utility 1 | . . 1 . . . Weapon . | . . . . . . Parts Attached 28 | 8 2 2 . 7 9 Power 4 | 1 . . . . 3 Engine 4 | 1 . . . . 3 Core . | . . . . . . Reactor . | . . . . . . Propulsion 12 | 3 2 1 . 2 4 Treads . | . . . . . . Leg . | . . . . . . Wheel 3 | 3 . . . . . Hover . | . . . . . . Flight 9 | . 2 1 . 2 4 Utility 6 | 2 . . . 2 2 Device 5 | 1 . . . 2 2 Storage 1 | 1 . . . . . Processor . | . . . . . . Hackware . | . . . . . . Protection . | . . . . . . Artifact . | . . . . . . Weapon 6 | 2 . 1 . 3 . Energy Gun . | . . . . . . Energy Cannon . | . . . . . . Ballistic Gun 2 | 2 . . . . . Ballistic Cannon 1 | . . . . 1 . Launcher . | . . . . . . Special Weapon . | . . . . . . Impact Weapon 1 | . . 1 . . . Slashing Weapon 2 | . . . . 2 . Piercing Weapon . | . . . . . . Special Melee Weapon . | . . . . . . Unidentified Prototypes 2 | . . . . 2 . Parts Lost 8 | . . . . . 8 Power 2 | . . . . . 2 Propulsion 5 | . . . . . 5 Utility 1 | . . . . . 1 Weapon . | . . . . . . Highest Loss Streak 7 | . . . . . 7 To Critical Strikes . | . . . . . . Average Backups 5 | 1 5 5 6 6 6 Power . | . 1 1 1 1 . Propulsion 3 | . 3 3 3 3 3 Utility . | . . . . 1 1 Weapon 1 | . 1 1 2 1 1 Tool/Special . | . . . . . . Unused Backups 8 | . 4 . . 4 . Power 2 | . 1 . . 1 . Propulsion 2 | . 2 . . . . Utility 1 | . . . . 1 . Weapon 3 | . 1 . . 2 . Tool/Special . | . . . . . . Average Slot Usage (%) 85 | . 98 88 88 80 83 Engine 11 | . 14 11 11 11 10 Wheel 1 | . 8 . . . . Flight 30 | . 18 33 33 32 32 Device 13 | . 14 11 11 11 18 Storage 11 | . 14 11 11 11 11 Ballistic Gun 9 | . 28 18 16 6 . Slashing Weapon 6 | . . . . 7 11 Peak Build Rating 24 | 7 8 8 9 22 24 Average Rating 13 | 5 7 7 8 15 20 On Entrance 8 | . 7 7 8 9 18 Avg Prop Armor Cover (%) . | . . . . . . Naked Turns . | . . . . . . Heaviest Build 21 | 11 11 12 12 21 20 Greatest Support 26 | 26 20 12 12 20 20 Greatest Overweight (x) 1 | . 1 . . 1 1 Average Overweight (x) . | . . . . . . Largest Inventory Capacity 8 | 8 8 8 8 8 8 Average Capacity 7 | 7 8 8 8 8 8 Most Carried 8 | 3 8 7 8 8 8 Average Carried 5 | 1 5 5 7 7 5 Final Capacity 8 | 8 8 8 8 8 8 Final Carried 8 | 3 6 6 8 7 3 Class Distribution -------------------- 100% | Mutant Dominant Class ---------------- Mutant | -10/Materials Mutant | -9/Materials Mutant | -9/Mines Mutant | -7/Zion Mutant | -6/Proximity Caves Resources | -11 -10 -9 -9 -7 -6 ----------- Run | Yrd Mat Mat Min Zio Pro Matter Collected 554 | 340 40 14 . 58 102 Remotely . | . . . . . . Salvage Created 583 | 190 41 25 . . 327 Parts 27 | 17 1 1 . . 8 Haulers Intercepted 1 | . 1 . . . . Recyclers Shooed . | . . . . . . Parts Field Recycled . | . . . . . . Retrieved Matter . | . . . . . . Parts Self-Destructed 5 | . . . . . 5 Prevented 3 | . . . . . 3 Parts Restored . | . . . . . . Kills | -11 -10 -9 -9 -7 -6 ------- Run | Yrd Mat Mat Min Zio Pro Combat Hostiles Destroyed 3 | . . . . . 3 Melee 3 | . . . . . 3 Classes Destroyed 7 | 3 1 1 . . 2 Worker 1 | 1 . . . . . Tunneler 5 | 5 . . . . . Hauler 1 | . 1 . . . . Recycler 1 | 1 . . . . . Watcher 1 | . . 1 . . . Grunt 1 | . . . . . 1 Duelist 2 | . . . . . 2 Best Kill Streak 2 | 2 1 1 . . 2 Combat Bots Only 2 | . . . . . 2 Max Kills in Single Turn 1 | 1 1 1 . . 1 Gunslinging . | . . . . . . Exploded . | . . . . . . Melee 1 | . . . . . 1 Uniques/NPCs Destroyed . | . . . . . . Combat | -11 -10 -9 -9 -7 -6 -------- Run | Yrd Mat Mat Min Zio Pro Hostile Shots Fired 95 | . 9 11 . . 75 Missed 56 | . 4 7 . . 45 Hits 39 | . 5 4 . . 30 Projectile 39 | . 5 4 . . 30 Critical Strikes 1 | . 1 . . . . Damage Taken 733 | . 65 27 . . 641 Core 277 | . 13 6 . . 258 Absorbed by Shields . | . . . . . . Core Remaining (%) 97 | 100 94 . . . . Volleys Fired 42 | 38 2 2 . . . Largest 2 | 2 2 2 . . . Hottest 40 | 40 40 40 . . . Shots Fired 84 | 76 4 4 . . . Gun 84 | 76 4 4 . . . Cannon . | . . . . . . Launcher . | . . . . . . Special . | . . . . . . Kinetic 84 | 76 4 4 . . . Thermal . | . . . . . . Explosive . | . . . . . . Electromagnetic . | . . . . . . Robot Hit Streak 7 | 7 3 1 . . . Robot Miss Streak 2 | 2 1 1 . . . Penetration Max . | . . . . . . Secondary Targets . | . . . . . . Shots Hit Robots 65 | 52 3 2 . . 8 Core Hits 25 | 16 2 2 . . 5 Critical Kills . | . . . . . . Critical Parts Destroyed 1 | 1 . . . . . Critical Strikes 1 | 1 . . . . . Destroy 1 | 1 . . . . . Melee Attacks 21 | . . 2 . . 19 Impact 2 | . . 2 . . . Slashing 19 | . . . . . 19 Piercing . | . . . . . . Sneak Attacks . | . . . . . . Combat Hostiles . | . . . . . . Follow-up Attacks . | . . . . . . Damage Inflicted 788 | 439 27 17 . . 305 Guns 483 | 439 27 17 . . . Cannons . | . . . . . . Explosions . | . . . . . . Melee 305 | . . . . . 305 Ramming . | . . . . . . Kinetic 483 | 439 27 17 . . . Thermal . | . . . . . . Explosive . | . . . . . . Electromagnetic . | . . . . . . Impact . | . . . . . . Slashing 305 | . . . . . 305 Piercing . | . . . . . . Highest Corruption . | . . . . . . Average Corruption . | . . . . . . Corruption Purged . | . . . . . . Corruption Blocked . | . . . . . . Overload Shots . | . . . . . . Overflow Damage 24 | . . . . . 24 Projectiles . | . . . . . . Explosions . | . . . . . . Melee 24 | . . . . . 24 Knockbacks . | . . . . . . Impact . | . . . . . . Kinetic . | . . . . . . Secondary . | . . . . . . Self-Inflicted Damage . | . . . . . . Shots . | . . . . . . Rammed . | . . . . . . Targets Rammed . | . . . . . . Kicked . | . . . . . . Crushed . | . . . . . . Highest Temperature 11 | . 11 . . . . Average Temperature 4 | . 4 . . . . Received Heat Transfer 156 | . 57 . . . 99 Siege Activations . | . . . . . . Martial Activations . | . . . . . . Shielding Activations . | . . . . . . Robots Disrupted . | . . . . . . Combat Hostiles . | . . . . . . Robots Corrupted . | . . . . . . Combat Hostiles . | . . . . . . Parts Fried 2 | . . . . . 2 Impact Corruptions . | . . . . . . Robots Melted . | . . . . . . Combat Hostiles . | . . . . . . Parts Melted . | . . . . . . Heat Transferred . | . . . . . . Parts Sabotaged . | . . . . . . Parts Stolen . | . . . . . . Parts Stripped . | . . . . . . Power Chain Reactions . | . . . . . . Alert | -11 -10 -9 -9 -7 -6 ------- Run | Yrd Mat Mat Min Zio Pro Maximum Alert Level . | . . . . . . Low Security (%) 100 | 100 100 100 100 . . Level 1 . | . . . . . . Level 2 . | . . . . . . Level 3 . | . . . . . . Level 4 . | . . . . . . Level 5 . | . . . . . . High Security . | . . . . . . Max Security . | . . . . . . Peak Influence 56 | 5 19 56 21 . . Initial 21 | . 3 3 21 . . Average 3 | 1 1 9 18 . . Influence Increases 438 | 35 30 83 . . 290 Destroy 0b10 Robot/C 80 | . . . . . 80 Destroy 0b10 Robot/NC 50 | 35 5 5 . . 5 Destroy Leader 4 | . 2 2 . . . Allied During Kill 10 | . . . . . 10 Successful Hack 8 | . 8 . . . . Destroy Structure 1 | . . 1 . . . Partial Spotted 30 | . . 30 . . . Lose Combat Pursuer 255 | . 15 45 . . 195 Influence Decreases 373 | 30 26 36 45 11 225 Entered New Map 54 | . 2 6 35 11 . Time Decay 239 | 30 24 30 10 . 145 Lost Part 40 | . . . . . 40 Lost Ally 40 | . . . . . 40 Squads Dispatched 1 | . . . . . 1 Investigation . | . . . . . . Extermination . | . . . . . . Reinforcement . | . . . . . . Assault 1 | . . . . . 1 Garrison . | . . . . . . Intercept . | . . . . . . Searches Triggered . | . . . . . . Construction Impeded . | . . . . . . Haulers Reinforced . | . . . . . . Active Scanning Responses . | . . . . . . Cargo Convoy Interrupts . | . . . . . . Stealth | -11 -10 -9 -9 -7 -6 --------- Run | Yrd Mat Mat Min Zio Pro Distress Signals . | . . . . . . Communications Jammed . | . . . . . . Distress Signals . | . . . . . . Times Spotted 29 | . 3 5 . . 21 Peak Tracking Total 8 | . 2 3 . . 8 Tactical Retreats 8 | . 1 1 . . 6 Traps | -11 -10 -9 -9 -7 -6 ------- Run | Yrd Mat Mat Min Zio Pro Traps Triggered . | . . . . . . Indirectly . | . . . . . . Trap Hack Attempts . | . . . . . . Triggered . | . . . . . . Disarmed . | . . . . . . Reprogrammed . | . . . . . . Reused . | . . . . . . Traps Extracted . | . . . . . . Installed . | . . . . . . Triggered . | . . . . . . Machines | -11 -10 -9 -9 -7 -6 ---------- Run | Yrd Mat Mat Min Zio Pro Machines Disabled . | . . . . . . Max in Single Turn . | . . . . . . Machines Repaired . | . . . . . . Machines Dismantled . | . . . . . . Machines Sabotaged . | . . . . . . Overloaded Fab Kills . | . . . . . . Hacking | -11 -10 -9 -9 -7 -6 --------- Run | Yrd Mat Mat Min Zio Pro Machines Accessed 4 | . 3 1 . . . Terminals 3 | . 3 . . . . Fabricators . | . . . . . . Repair Stations . | . . . . . . Recycling Units . | . . . . . . Scanalyzers 1 | . . 1 . . . Garrison Access . | . . . . . . Total Hacks 8 | . 6 2 . . . Successful 6 | . 4 2 . . . Failed 2 | . 2 . . . . Catastrophic . | . . . . . . Database Lockouts . | . . . . . . Manual 1 | . 1 . . . . Terminals 6 | . 6 . . . . Fabricators . | . . . . . . Repair Stations . | . . . . . . Recycling Units . | . . . . . . Scanalyzers 2 | . . 2 . . . Garrison Access . | . . . . . . Terminal Hacks 4 | . 4 . . . . Branch Access Points 1 | . 1 . . . . Emergency Access Points 1 | . 1 . . . . Locate Traps 2 | . 2 . . . . Fabricator Hacks . | . . . . . . Repair Station Hacks . | . . . . . . Recycling Unit Hacks . | . . . . . . Scanalyzer 2 | . . 2 . . . Insert Component 1 | . . 1 . . . Analyze 1 | . . 1 . . . Garrison Access Hacks . | . . . . . . Unauthorized Hacks . | . . . . . . Terminals . | . . . . . . Fabricators . | . . . . . . Repair Stations . | . . . . . . Recycling Units . | . . . . . . Scanalyzers . | . . . . . . Garrison Access . | . . . . . . Data Cores Recovered . | . . . . . . Used . | . . . . . . Hacking Detections 3 | . 2 1 . . . Full Trace Events . | . . . . . . Feedback Events . | . . . . . . Feedback Blocked . | . . . . . . Robot Schematics Acquired . | . . . . . . Robots Built . | . . . . . . Authchips . | . . . . . . Time . | . . . . . . Total Robot Build Rating . | . . . . . . Part Schematics Acquired 1 | . . 1 . . . Parts Built . | . . . . . . Authchips . | . . . . . . Time . | . . . . . . Total Part Build Rating . | . . . . . . Part Studies Acquired . | . . . . . . Parts Repaired . | . . . . . . Time . | . . . . . . Parts Recycled . | . . . . . . Recycled Matter . | . . . . . . Retrieved Matter . | . . . . . . Retrieved Components . | . . . . . . Parts Scanalyzed 1 | . . 1 . . . Part Schematics Acquired 1 | . . 1 . . . Parts Damaged . | . . . . . . Bothacking | -11 -10 -9 -9 -7 -6 ------------ Run | Yrd Mat Mat Min Zio Pro Used RIF Installer . | . . . . . . Robots Hacked . | . . . . . . Non-combat . | . . . . . . Combat . | . . . . . . Robot Hacks Applied . | . . . . . . Relay Couplers Released . | . . . . . . Fabnet Peak Effective % . | . . . . . . Robots Rewired . | . . . . . . Allies Hacked . | . . . . . . Hacks Repelled . | . . . . . . Allies | -11 -10 -9 -9 -7 -6 -------- Run | Yrd Mat Mat Min Zio Pro Total Allies 4 | . . . . 4 . Largest Group 4 | . . . . 4 4 Highest-Rated Group 158 | . . . . 158 158 Highest-Rated Ally 41 | . . . . 41 41 Total Orders . | . . . . . . Ally Attacks 12 | . . . . . 12 Total Damage 241 | . . . . . 241 Kills 1 | . . . . . 1 Allies Corrupted . | . . . . . . Allies Melted . | . . . . . . Intel | -11 -10 -9 -9 -7 -6 ------- Run | Yrd Mat Mat Min Zio Pro Active Infowar (turns) 1408 | 3 268 95 27 773 242 Seismic 1408 | 3 268 95 27 773 242 Robot Analysis Total . | . . . . . . Derelict Logs Recovered 3 | . . . . 2 1 Drone Launches . | . . . . . . Drone Recoveries . | . . . . . . Exploration | -11 -10 -9 -9 -7 -6 ------------- Run | Yrd Mat Mat Min Zio Pro Turns Passed 1785 | 230 268 95 27 773 392 Spaces Moved 2526 | 125 232 234 71 1313 551 Core 1 | 1 . . . . . Treads . | . . . . . . Legs . | . . . . . . Wheels 204 | 124 80 . . . . Hover . | . . . . . . Flight 2321 | . 152 234 71 1313 551 Fastest Speed 34 | 50 80 34 34 34 34 Average Speed 47 | 86 104 34 34 39 41 Slowest Speed 129 | 100 117 34 34 117 129 Overloaded Moves . | . . . . . . Propulsion Burnouts . | . . . . . . Robots Hopped 7 | . . 7 . . . Potential Cave-ins . | . . . . . . Cave-ins Triggered . | . . . . . . Exploration Rate (%) 36 | 5 36 19 22 93 46 Regions Visited 5 Branch Regions 3 Pre-discovered Areas 3 | . . . . 2 1 Known Exits Taken . | . . . . . . Unknown Exits Taken 5 | 1 1 1 1 1 . Scrap Searched 4 | . . . . 2 2 Spaces Dug 7 | . . 1 . . 6 Terrain Destroyed 7 | . . 1 . . 6 Melee 7 | . . 1 . . 6 Projectile . | . . . . . . AOE . | . . . . . . Terrain Rammed . | . . . . . . Walls Destroyed . | . . . . . . Machines Disabled . | . . . . . . Actions | -11 -10 -9 -9 -7 -6 --------- Run | Yrd Mat Mat Min Zio Pro Total 2999 | 182 259 235 73 1568 682 Wait 337 | 9 5 . . 226 97 Move 2507 | 124 231 219 70 1312 551 Hop 7 | . . 7 . . . Pick Up 21 | 3 11 1 1 4 1 Fast Attach 17 | 6 . 1 . 6 4 Attach 12 | 1 2 1 1 1 6 Detach 11 | . . 1 1 8 1 Swap 2 | 1 . . . . 1 Drop 22 | . 8 1 . 11 2 Fire 42 | 38 2 2 . . . Melee 21 | . . 2 . . 19 Ram . | . . . . . . Kick . | . . . . . . Crush . | . . . . . . Escape Stasis . | . . . . . . Rewire . | . . . . . . Trap . | . . . . . . Miscellaneous . | . . . . . . Route ------- -11/Scrapyard -10/Materials (discovered 2 exits: *Mat / Min) -9/Materials -9/Mines -7/Zion -6/Proximity Caves History --------- Turn | Location | Event 8 | -11/Scrapyard | Discovered new exit (range 15) 231 | -11/Scrapyard | Entered Materials 255 | -10/Materials | Identified exit to Mines 337 | -10/Materials | Build established: Mutant 484 | -10/Materials | Discovered new exit (range 15) 499 | -10/Materials | Entered another Materials area 499 | -9/Materials | Evolved 2 slots: Propulsion x1, Utility x1 591 | -9/Materials | Discovered new exit (range 7) 594 | -9/Materials | Entered Mines 603 | -9/Mines | Found a Scrap Suit stashed away for nefarious purposes 604 | -9/Mines | Found Scrap Suit 619 | -9/Mines | A Derelict revealed a hidden shortcut to a safe place 621 | -9/Mines | Entered Zion 669 | -7/Zion | Given the Hacking Drone Bay 672 | -7/Zion | Found Prototype Device 673 | -7/Zion | Identified Hacking Drone Bay 691 | -7/Zion | Discovered new exit (range 13) 787 | -7/Zion | Found Prototype Device 789 | -7/Zion | Identified Mobile Refinery Mk. CCLXVII 803 | -7/Zion | Learned location of Armory (-4) 825 | -7/Zion | Learned Factory emergency access door positions 827 | -7/Zion | Learned 12 Factory zone layouts 849 | -7/Zion | Given A8's code to call for help 942 | -7/Zion | Learned location of Warlord (-5) 1074 | -7/Zion | Met Imprinter 1082 | -7/Zion | Imprinted 1084 | -7/Zion | Declared Zion's savior 1394 | -7/Zion | Entered Proximity Caves 1394 | -6/Proximity Caves | Accompanied by 4 allies 1492 | -6/Proximity Caves | Attracted the attention of an 0b10 outpost 1552 | -6/Proximity Caves | Lost 4 allies 1629 | -6/Proximity Caves | Spotted B-75 Beast 1691 | -6/Proximity Caves | Core integrity fell below 50% 1708 | -6/Proximity Caves | Lost 7 parts (2p4n1u) 1786 | -6/Proximity Caves | Self-destructed Last Messages --------------- 01652_ Dropped Heat Sink. 01653_ Acquired Heat Sink. 01658_ Searching scrap... 01658_ Found Mak. Power Source. 01658_ Found 44 Matter. 01659_ Acquired 10 matter. 01659_ Acquired Mak. Power Source. 01669_ Penetrated by Slug. 01669_ Flight Unit destroyed. 01669_ Mak. Power Source destroyed. 01669_ Knocked back. 01677_ Xenon Bombardment Thruster destroyed. 01687_ Penetrated by Slug. 01781_ Drone sends a signal. 01781_ Penetrated by Slug. 01781_ Flight Unit destroyed. 01783_ H-66 Slayer retrieves Drone. 01785_ Penetrated by Slug. 01785_ Slug penetrates H-66 Slayer. 01785_ Penetrated by Slug. Map ----- +----------------------------------------------------+ | ?????????????????????????????????????????????????? | | ?????????????????????????????????????????????????? | | ?????????????????????????????????????????????????? | | ?????????????????????????????????????????????????? | | ?????????????????????????????????????????????????? | | ?????????????????????????????????????????????????? | | ?????????????????????????????????????????????????? | | ?????????????????????????????????????????????????? | | ?????????????????????????????????????????????????? | | ?????????????????????????????????????????????????? | | ?????????????????????????????????????????????????? | | ?????????????????????????????????????????????????? | | ?????????????????????????????????????????????????? | | ?????????????????????????????????????????????????? | | ?????????????????????????????????????????????????? | | ?????####????????????????????????????????????????? | | ????##/%##???????????????????????????????????????? | | ???## ! #???????????????????????????????????????? | | ???# #???????????????????????????????????????? | | ???# #???????????????????????????????????????? | | ???## % ####????????????????####???????????????## | | ??### # ## ##??????#####???## ##??????????????# | | ?## # ######## ##### #######????????# | | ?# ### ## ## #??####### | | ?# ##### ## #??# ### | | ?## #??## @ #### ## | | ??#### ######% ## | | ?????## # ##?## |= h | | ??????# ## ##??#%!*=*= ###### | | ??????# ####???# %*%#%###### #????# | | ??????# #??????# ##[#["????# #????# | | ??????# #??????####%# ???# ## ## #???## | | ??????# #????????#[!* ##??# # ######### ##??# | | ??????# #??????? ???# ####???????# #### | | ??????# #?????? # ?# #####??????## ### | | ??????# #????? # "# ## ##??????## #?# | | ??????# #????## ### $### ## ##??????## #?# | | ??????# #?????# ## #?????######?? | | ??????# #????? ####### #????# ##???? | | ??????# #???? #?????# ##??# #???? | | ??????# #???## ??????## ### #??### | | ?????## ####?#### ???????# #???# | | ?????# #????## ??????# ##???## | | ?###?# #????## #????## ####??### | | ?# ## #????# #?### ## ### # | | ?# #???## ## ### ### #"## | | ?# #???# ##?# ##?# ### | | ?## #### #??# ##?# ### | | ??# ### ####??# #### | | ??## #?# #?????# ### | +----------------------------------------------------+ Best States ------------- Heat Dissipation 52 Energy Generation 16 Energy Capacity 290 Matter Stores 300 Matter Capacity 300 Sight Range 16 Terrain Scan Density 10 Evasion (%) 63 Item Schematics ----------------- Flight Unit | -9/Materials | Scanalyzed Robot Schematics ------------------ None Fabricated ------------ Nothing Repaired ---------- Nothing Studied --------- None Alien Tech Used ----------------- None Achievements -------------- Deductive Reasoning Challenges ------------ None Game ------ Seed AutogunXenonRedirector Manual? 0 Play Time 00:31:26 Cumulative 202.5 hours Start 2025.11.30 @ 01:15:50 End 2025.11.30 @ 01:49:05 Sessions 1 Manual Loads 0 Difficulty Rogue Special Mode None Game No. 80 Rogue 17 Adventurer 63 Explorer 0 Win Type - Total 8 Types 4/2/0/2/0/0/0/0/0/0 Lore% 31 Gallery% 58 Achievement% 34 Wizard Run 0 Options --------- Layout 1 ASCII 0 Keyboard 0 Movement Mouse Keybinds 0 Fullscreen 1 Font 24/Smallcaps Map View 50x35 Zoom Use 0% Tactical HUD 1 Map Filters NONE Filters NONE Steam 1 RUN: 1da54921-487f-4b8c-8f35-8d1021432388